[Event "Titled Tuesday Blitz January 17 Early 2023"]
[White "Zierk, Steven"]
[Black "Sarana, Alexey"]
[WhiteFideId "2034255"]
[BlackFideId "24133795"]
[WhiteElo "2488"]
[BlackElo "2685"]
[Result "0-1"]
[Round "05"]
[TimeControl "180+2"]
[Date "2023.01.17"]
[WhiteClock "0:00:01"]
[BlackClock "0:00:06"]

1. e4 {[%clk 0:03:00]}  e5 {[%clk 0:02:57]} 2. Nf3 {[%clk 0:03:00]}  Nc6 {[%clk 0:02:57]} 3. Bc4 {[%clk 0:03:00]}  Nf6 {[%clk 0:02:57]} 4. d4 {[%clk 0:02:59]}  exd4 {[%clk 0:02:55]} 5. e5 {[%clk 0:02:59]}  d5 {[%clk 0:02:55]} 6. Bb5 {[%clk 0:02:59]}  Nd7 {[%clk 0:02:55]} 7. O-O {[%clk 0:02:44]}  Be7 {[%clk 0:02:54]} 8. Bxc6 {[%clk 0:02:37]}  bxc6 {[%clk 0:02:55]} 9. Nxd4 {[%clk 0:02:38]}  Nb8 {[%clk 0:02:56]} 10. Qf3 {[%clk 0:02:34]}  O-O {[%clk 0:02:32]} 11. Nc3 {[%clk 0:02:31]}  Qd7 {[%clk 0:02:28]} 12. Qg3 {[%clk 0:02:21]}  Qg4 {[%clk 0:02:26]} 13. Qxg4 {[%clk 0:02:12]}  Bxg4 {[%clk 0:02:25]} 14. h3 {[%clk 0:02:11]}  Bc8 {[%clk 0:02:25]} 15. f4 {[%clk 0:02:09]}  Rd8 {[%clk 0:02:25]} 16. f5 {[%clk 0:01:59]}  c5 {[%clk 0:02:24]} 17. f6 {[%clk 0:01:59]}  Bf8 {[%clk 0:02:16]} 18. fxg7 {[%clk 0:01:46]}  Bxg7 {[%clk 0:02:11]} 19. Nf5 {[%clk 0:01:33]}  Bxf5 {[%clk 0:02:07]} 20. Rxf5 {[%clk 0:01:33]}  Nc6 {[%clk 0:02:07]} 21. Bg5 {[%clk 0:01:33]}  Rd7 {[%clk 0:02:06]} 22. Bf6 {[%clk 0:01:32]}  h6 {[%clk 0:02:04]} 23. Rd1 {[%clk 0:01:09]}  Nd4 {[%clk 0:02:03]} 24. Rf2 {[%clk 0:01:07]}  Re8 {[%clk 0:01:50]} 25. Bxg7 {[%clk 0:01:00]}  Kxg7 {[%clk 0:01:50]} 26. Na4 {[%clk 0:01:01]}  Ne6 {[%clk 0:01:47]} 27. c4 {[%clk 0:01:01]}  d4 {[%clk 0:01:46]} 28. Rd3 {[%clk 0:00:55]}  Rb8 {[%clk 0:01:45]} 29. b3 {[%clk 0:00:54]}  Rg8 {[%clk 0:01:42]} 30. Rg3+ {[%clk 0:00:52]}  Kf8 {[%clk 0:01:41]} 31. Rxg8+ {[%clk 0:00:53]}  Kxg8 {[%clk 0:01:42]} 32. Nb2 {[%clk 0:00:54]}  Kg7 {[%clk 0:01:31]} 33. Nd3 {[%clk 0:00:54]}  a5 {[%clk 0:01:31]} 34. Kf1 {[%clk 0:00:49]}  Rd8 {[%clk 0:01:30]} 35. Ke2 {[%clk 0:00:49]}  a4 {[%clk 0:01:30]} 36. Kd2 {[%clk 0:00:18]}  axb3 {[%clk 0:01:30]} 37. axb3 {[%clk 0:00:18]}  Ra8 {[%clk 0:01:30]} 38. Kc1 {[%clk 0:00:16]}  Ra1+ {[%clk 0:01:29]} 39. Kb2 {[%clk 0:00:16]}  Rg1 {[%clk 0:01:28]} 40. b4 {[%clk 0:00:13]}  cxb4 {[%clk 0:01:26]} 41. Nxb4 {[%clk 0:00:14]}  Nc5 {[%clk 0:01:14]} 42. Rd2 {[%clk 0:00:12]}  Ne6 {[%clk 0:01:02]} 43. Nc6 {[%clk 0:00:12]}  h5 {[%clk 0:00:58]} 44. Nxd4 {[%clk 0:00:09]}  Nxd4 {[%clk 0:00:57]} 45. Rxd4 {[%clk 0:00:10]}  Rxg2+ {[%clk 0:00:57]} 46. Kb3 {[%clk 0:00:10]}  Rg3+ {[%clk 0:00:58]} 47. Kb4 {[%clk 0:00:11]}  Rxh3 {[%clk 0:00:58]} 48. Rd7 {[%clk 0:00:11]}  Re3 {[%clk 0:00:59]} 49. Rxc7 {[%clk 0:00:09]}  Rxe5 {[%clk 0:00:59]} 50. Rd7 {[%clk 0:00:09]}  h4 {[%clk 0:00:59]} 51. c5 {[%clk 0:00:08]}  h3 {[%clk 0:00:50]} 52. c6 {[%clk 0:00:08]}  Re1 {[%clk 0:00:42]} 53. Rd2 {[%clk 0:00:07]}  Rh1 {[%clk 0:00:33]} 54. Kc5 {[%clk 0:00:05]}  Kg6 {[%clk 0:00:23]} 55. Kd6 {[%clk 0:00:02]}  Kg5 {[%clk 0:00:23]} 56. c7 {[%clk 0:00:02]}  Rc1 {[%clk 0:00:24]} 57. Rd5+ {[%clk 0:00:03]}  f5 {[%clk 0:00:20]} 58. Rc5 {[%clk 0:00:02]}  Rxc5 {[%clk 0:00:21]} 59. Kxc5 {[%clk 0:00:03]}  h2 {[%clk 0:00:21]} 60. c8=Q {[%clk 0:00:04]}  h1=Q {[%clk 0:00:22]} 61. Qd8+ {[%clk 0:00:04]}  Kg4 {[%clk 0:00:22]} 62. Qd4+ {[%clk 0:00:04]}  Qe4 {[%clk 0:00:22]} 63. Qg7+ {[%clk 0:00:03]}  Kf3 {[%clk 0:00:22]} 64. Qh7 {[%clk 0:00:04]}  Qe3+ {[%clk 0:00:19]} 65. Kc6 {[%clk 0:00:04]}  f4 {[%clk 0:00:19]} 66. Qh3+ {[%clk 0:00:04]}  Kf2 {[%clk 0:00:20]} 67. Qh2+ {[%clk 0:00:04]}  Kf1 {[%clk 0:00:20]} 68. Kb7 {[%clk 0:00:05]}  Qg3 {[%clk 0:00:19]} 69. Qh1+ {[%clk 0:00:05]}  Kf2 {[%clk 0:00:19]} 70. Kb8 {[%clk 0:00:05]}  f3+ {[%clk 0:00:19]} 71. Ka7 {[%clk 0:00:06]}  Qg1 {[%clk 0:00:18]} 72. Qh4+ {[%clk 0:00:06]}  Kg2+ {[%clk 0:00:18]} 73. Ka8 {[%clk 0:00:06]}  Qc5 {[%clk 0:00:18]} 74. Qg4+ {[%clk 0:00:06]}  Kf2 {[%clk 0:00:18]} 75. Qg6 {[%clk 0:00:06]}  Qd5+ {[%clk 0:00:17]} 76. Kb8 {[%clk 0:00:06]}  Qe5+ {[%clk 0:00:17]} 77. Ka8 {[%clk 0:00:06]}  Qg3 {[%clk 0:00:16]} 78. Qb6+ {[%clk 0:00:05]}  Kg2 {[%clk 0:00:16]} 79. Qc6 {[%clk 0:00:06]}  Kg1 {[%clk 0:00:16]} 80. Qc3 {[%clk 0:00:06]}  Qg4 {[%clk 0:00:15]} 81. Qe1+ {[%clk 0:00:05]}  Kg2 {[%clk 0:00:15]} 82. Kb8 {[%clk 0:00:04]}  f2 {[%clk 0:00:14]} 83. Qd2 {[%clk 0:00:05]}  Kg1 {[%clk 0:00:14]} 84. Qe3 {[%clk 0:00:05]}  Kg2 {[%clk 0:00:11]} 85. Qd2 {[%clk 0:00:05]}  Qg3+ {[%clk 0:00:12]} 86. Ka8 {[%clk 0:00:05]}  Qf3+ {[%clk 0:00:12]} 87. Kb8 {[%clk 0:00:04]}  Kg3 {[%clk 0:00:12]} 88. Qg5+ {[%clk 0:00:04]}  Qg4 {[%clk 0:00:13]} 89. Qe3+ {[%clk 0:00:04]}  Qf3 {[%clk 0:00:12]} 90. Qg5+ {[%clk 0:00:05]}  Kh3 {[%clk 0:00:13]} 91. Qh6+ {[%clk 0:00:05]}  Kg2 {[%clk 0:00:13]} 92. Qd2 {[%clk 0:00:04]}  Qe4 {[%clk 0:00:10]} 93. Qg5+ {[%clk 0:00:03]}  Kf3 {[%clk 0:00:10]} 94. Qh5+ {[%clk 0:00:02]}  Ke3 {[%clk 0:00:10]} 95. Qh3+ {[%clk 0:00:01]}  Ke2 {[%clk 0:00:11]} 96. Qh2 {[%clk 0:00:01]}  Qf5 {[%clk 0:00:10]} 97. Ka8 {[%clk 0:00:01]}  Kd3 {[%clk 0:00:09]} 98. Qd6+ {[%clk 0:00:01]}  Ke4 {[%clk 0:00:09]} 99. Qe7+ {[%clk 0:00:01]}  Kd4 {[%clk 0:00:08]} 100. Qb4+ {[%clk 0:00:01]}  Ke3 {[%clk 0:00:08]} 101. Qc3+ {[%clk 0:00:01]}  Kf4 {[%clk 0:00:07]} 102. Qd2+ {[%clk 0:00:01]}  Kg4 {[%clk 0:00:06]} 0-1


[Site "https://www.chess.com"]

[Event "Titled Tuesday Blitz January 17 Early 2023"]
[White "Bortnyk, Olexandr"]
[Black "Babazada, Khazar"]
[WhiteFideId "14120828"]
[BlackFideId "13413554"]
[WhiteElo "2605"]
[BlackElo "2474"]
[Result "1/2-1/2"]
[Round "05"]
[TimeControl "180+2"]
[Date "2023.01.17"]
[WhiteClock "0:00:04"]
[BlackClock "0:00:44"]

1. e4 {[%clk 0:03:00]}  Nf6 {[%clk 0:02:56]} 2. e5 {[%clk 0:03:00]}  Nd5 {[%clk 0:02:57]} 3. d4 {[%clk 0:03:00]}  d6 {[%clk 0:02:57]} 4. c4 {[%clk 0:03:00]}  Nb6 {[%clk 0:02:58]} 5. f4 {[%clk 0:03:01]}  dxe5 {[%clk 0:02:56]} 6. fxe5 {[%clk 0:03:01]}  Bf5 {[%clk 0:02:56]} 7. Nf3 {[%clk 0:02:50]}  e6 {[%clk 0:02:57]} 8. Nc3 {[%clk 0:02:49]}  Be7 {[%clk 0:02:54]} 9. Bd3 {[%clk 0:02:48]}  Bxd3 {[%clk 0:02:50]} 10. Qxd3 {[%clk 0:02:48]}  Nc6 {[%clk 0:02:50]} 11. O-O {[%clk 0:02:41]}  Qd7 {[%clk 0:02:50]} 12. Be3 {[%clk 0:02:30]}  O-O-O {[%clk 0:02:50]} 13. Rad1 {[%clk 0:02:27]}  f6 {[%clk 0:02:50]} 14. exf6 {[%clk 0:02:10]}  Bxf6 {[%clk 0:02:50]} 15. Qe2 {[%clk 0:01:20]}  Qe8 {[%clk 0:02:27]} 16. Kh1 {[%clk 0:01:13]}  Qh5 {[%clk 0:02:26]} 17. b3 {[%clk 0:01:11]}  Rhf8 {[%clk 0:02:26]} 18. Rd2 {[%clk 0:01:08]}  Kb8 {[%clk 0:02:22]} 19. Ne4 {[%clk 0:01:07]}  Be7 {[%clk 0:02:21]} 20. Rdd1 {[%clk 0:00:55]}  Qg6 {[%clk 0:02:17]} 21. Nf2 {[%clk 0:00:30]}  Bf6 {[%clk 0:02:07]} 22. a3 {[%clk 0:00:24]}  Na5 {[%clk 0:02:05]} 23. Qd3 {[%clk 0:00:24]}  Qxd3 {[%clk 0:02:01]} 24. Rxd3 {[%clk 0:00:25]}  Be7 {[%clk 0:01:58]} 25. Ne4 {[%clk 0:00:22]}  Nc6 {[%clk 0:01:55]} 26. Rfd1 {[%clk 0:00:22]}  Bxa3 {[%clk 0:01:53]} 27. Nfg5 {[%clk 0:00:21]}  Rfe8 {[%clk 0:01:43]} 28. Nxh7 {[%clk 0:00:20]}  Nb4 {[%clk 0:01:44]} 29. R3d2 {[%clk 0:00:21]}  Nc6 {[%clk 0:01:41]} 30. Nhg5 {[%clk 0:00:21]}  Bb4 {[%clk 0:01:41]} 31. Rd3 {[%clk 0:00:21]}  a5 {[%clk 0:01:41]} 32. h4 {[%clk 0:00:21]}  a4 {[%clk 0:01:41]} 33. c5 {[%clk 0:00:19]}  Nd5 {[%clk 0:01:40]} 34. bxa4 {[%clk 0:00:17]}  Nxe3 {[%clk 0:01:16]} 35. Rxe3 {[%clk 0:00:18]}  Rxd4 {[%clk 0:01:16]} 36. Rxd4 {[%clk 0:00:18]}  Nxd4 {[%clk 0:01:17]} 37. g4 {[%clk 0:00:18]}  e5 {[%clk 0:01:14]} 38. Kg2 {[%clk 0:00:18]}  b6 {[%clk 0:01:14]} 39. cxb6 {[%clk 0:00:18]}  cxb6 {[%clk 0:01:15]} 40. h5 {[%clk 0:00:18]}  Rc8 {[%clk 0:01:15]} 41. Kh3 {[%clk 0:00:18]}  Rc1 {[%clk 0:01:15]} 42. Ng3 {[%clk 0:00:18]}  Ra1 {[%clk 0:01:08]} 43. Rxe5 {[%clk 0:00:16]}  Ra3 {[%clk 0:01:07]} 44. Re8+ {[%clk 0:00:15]}  Kb7 {[%clk 0:01:07]} 45. Rg8 {[%clk 0:00:11]}  Ne2 {[%clk 0:01:05]} 46. Rxg7+ {[%clk 0:00:11]}  Ka6 {[%clk 0:01:05]} 47. Ne4 {[%clk 0:00:11]}  Be1 {[%clk 0:01:03]} 48. h6 {[%clk 0:00:09]}  Nxg3 {[%clk 0:00:57]} 49. Nxg3 {[%clk 0:00:07]}  Bxg3 {[%clk 0:00:56]} 50. g5 {[%clk 0:00:06]}  Be5+ {[%clk 0:00:55]} 51. Kg4 {[%clk 0:00:07]}  Rxa4+ {[%clk 0:00:54]} 52. Kf5 {[%clk 0:00:07]}  Ba1 {[%clk 0:00:54]} 53. Rd7 {[%clk 0:00:03]}  Rh4 {[%clk 0:00:52]} 54. h7 {[%clk 0:00:02]}  b5 {[%clk 0:00:50]} 55. g6 {[%clk 0:00:02]}  b4 {[%clk 0:00:51]} 56. Rd8 {[%clk 0:00:03]}  Kb7 {[%clk 0:00:49]} 57. Rd5 {[%clk 0:00:03]}  Kc6 {[%clk 0:00:47]} 58. Rd8 {[%clk 0:00:03]}  Kb7 {[%clk 0:00:45]} 59. Rd7+ {[%clk 0:00:03]}  Kb6 {[%clk 0:00:45]} 60. Rd8 {[%clk 0:00:04]}  Kb7 {[%clk 0:00:44]} 1/2-1/2


[Site "https://www.chess.com"]

[Event "Titled Tuesday Blitz January 17 Early 2023"]
[White "Kamsky, Gata"]
[Black "Dubov, Daniil"]
[WhiteFideId "2000024"]
[BlackFideId "24126055"]
[WhiteElo "2665"]
[BlackElo "2708"]
[Result "1/2-1/2"]
[Round "05"]
[TimeControl "180+2"]
[Date "2023.01.17"]
[WhiteClock "0:00:14"]
[BlackClock "0:00:03"]

1. e4 {[%clk 0:03:00]}  c5 {[%clk 0:02:57]} 2. Nf3 {[%clk 0:03:00]}  e6 {[%clk 0:02:57]} 3. d4 {[%clk 0:02:54]}  cxd4 {[%clk 0:02:58]} 4. Nxd4 {[%clk 0:02:54]}  Nf6 {[%clk 0:02:59]} 5. Nc3 {[%clk 0:02:52]}  Nc6 {[%clk 0:02:59]} 6. Ndb5 {[%clk 0:02:52]}  Bc5 {[%clk 0:02:59]} 7. Bf4 {[%clk 0:02:35]}  O-O {[%clk 0:02:58]} 8. Bc7 {[%clk 0:02:32]}  Qe7 {[%clk 0:02:58]} 9. Bd6 {[%clk 0:02:32]}  Bxd6 {[%clk 0:02:58]} 10. Qxd6 {[%clk 0:02:32]}  Qd8 {[%clk 0:02:58]} 11. Qc7 {[%clk 0:02:16]}  d5 {[%clk 0:02:52]} 12. Qxd8 {[%clk 0:02:15]}  Rxd8 {[%clk 0:02:52]} 13. exd5 {[%clk 0:02:14]}  exd5 {[%clk 0:02:47]} 14. O-O-O {[%clk 0:02:10]}  d4 {[%clk 0:02:41]} 15. Ne2 {[%clk 0:01:07]}  Ne4 {[%clk 0:02:21]} 16. Rg1 {[%clk 0:01:05]}  Nxf2 {[%clk 0:02:18]} 17. Rd2 {[%clk 0:01:05]}  Ne4 {[%clk 0:02:08]} 18. Rd1 {[%clk 0:01:05]}  Bg4 {[%clk 0:00:32]} 19. Nbxd4 {[%clk 0:01:02]}  Bxe2 {[%clk 0:00:16]} 20. Nxe2 {[%clk 0:01:01]}  Rxd1+ {[%clk 0:00:16]} 21. Kxd1 {[%clk 0:01:02]}  Rd8+ {[%clk 0:00:16]} 22. Kc1 {[%clk 0:01:01]}  Nb4 {[%clk 0:00:15]} 23. a3 {[%clk 0:00:52]}  Nd5 {[%clk 0:00:16]} 24. Ng3 {[%clk 0:00:42]}  Ne3 {[%clk 0:00:10]} 25. Bd3 {[%clk 0:00:40]}  Nxg3 {[%clk 0:00:09]} 26. hxg3 {[%clk 0:00:39]}  Kf8 {[%clk 0:00:08]} 27. Re1 {[%clk 0:00:37]}  Ng4 {[%clk 0:00:05]} 28. Be4 {[%clk 0:00:31]}  b6 {[%clk 0:00:05]} 29. Bf3 {[%clk 0:00:31]}  Nf6 {[%clk 0:00:05]} 30. b4 {[%clk 0:00:30]}  Re8 {[%clk 0:00:03]} 31. Rxe8+ {[%clk 0:00:27]}  Kxe8 {[%clk 0:00:04]} 32. Kd2 {[%clk 0:00:24]}  Ke7 {[%clk 0:00:04]} 33. Ke3 {[%clk 0:00:24]}  Kd6 {[%clk 0:00:03]} 34. Kd4 {[%clk 0:00:24]}  Nd7 {[%clk 0:00:01]} 35. Bd5 {[%clk 0:00:23]}  f6 {[%clk 0:00:01]} 36. c4 {[%clk 0:00:20]}  Ne5 {[%clk 0:00:01]} 37. c5+ {[%clk 0:00:17]}  bxc5+ {[%clk 0:00:02]} 38. bxc5+ {[%clk 0:00:17]}  Kd7 {[%clk 0:00:03]} 39. Be4 {[%clk 0:00:16]}  g6 {[%clk 0:00:03]} 40. Bd5 {[%clk 0:00:17]}  Kc7 {[%clk 0:00:03]} 41. Be4 {[%clk 0:00:17]}  Kd7 {[%clk 0:00:04]} 42. Bd5 {[%clk 0:00:17]}  Nc6+ {[%clk 0:00:03]} 43. Kc4 {[%clk 0:00:14]}  Ne5+ {[%clk 0:00:03]} 44. Kd4 {[%clk 0:00:14]} 1/2-1/2


[Site "https://www.chess.com"]

[Event "Titled Tuesday Blitz January 17 Early 2023"]
[White "Kravtsiv, Martyn"]
[Black "Naroditsky, Daniel"]
[WhiteFideId "14113147"]
[BlackFideId "2026961"]
[WhiteElo "2598"]
[BlackElo "2618"]
[Result "1-0"]
[Round "05"]
[TimeControl "180+2"]
[Date "2023.01.17"]
[WhiteClock "0:00:08"]
[BlackClock "0:00:02"]

1. e4 {[%clk 0:03:00]}  c6 {[%clk 0:02:59]} 2. Nf3 {[%clk 0:03:01]}  d5 {[%clk 0:03:00]} 3. d3 {[%clk 0:03:01]}  Qc7 {[%clk 0:03:00]} 4. Nc3 {[%clk 0:03:01]}  dxe4 {[%clk 0:03:01]} 5. Nxe4 {[%clk 0:03:01]}  Nf6 {[%clk 0:02:58]} 6. Qe2 {[%clk 0:03:01]}  Nxe4 {[%clk 0:02:52]} 7. Qxe4 {[%clk 0:03:02]}  Nd7 {[%clk 0:02:51]} 8. g3 {[%clk 0:02:52]}  Nf6 {[%clk 0:02:50]} 9. Qe2 {[%clk 0:02:52]}  Bg4 {[%clk 0:02:50]} 10. Bg2 {[%clk 0:02:51]}  e6 {[%clk 0:02:51]} 11. h3 {[%clk 0:02:40]}  Bh5 {[%clk 0:02:51]} 12. g4 {[%clk 0:02:40]}  Bg6 {[%clk 0:02:51]} 13. Ne5 {[%clk 0:02:40]}  Bd6 {[%clk 0:02:51]} 14. f4 {[%clk 0:02:36]}  O-O-O {[%clk 0:02:47]} 15. Bd2 {[%clk 0:02:34]}  Bxe5 {[%clk 0:02:34]} 16. fxe5 {[%clk 0:02:32]}  Nd7 {[%clk 0:02:34]} 17. Bc3 {[%clk 0:02:26]}  Nb6 {[%clk 0:02:35]} 18. O-O-O {[%clk 0:02:14]}  Nd5 {[%clk 0:02:34]} 19. Bd2 {[%clk 0:02:14]}  Rd7 {[%clk 0:02:27]} 20. a3 {[%clk 0:02:03]}  Rhd8 {[%clk 0:02:27]} 21. h4 {[%clk 0:02:02]}  h6 {[%clk 0:02:27]} 22. h5 {[%clk 0:02:01]}  Bh7 {[%clk 0:02:28]} 23. g5 {[%clk 0:01:58]}  hxg5 {[%clk 0:02:27]} 24. Bxg5 {[%clk 0:01:59]}  Re8 {[%clk 0:02:25]} 25. Rhf1 {[%clk 0:01:46]}  Bf5 {[%clk 0:02:25]} 26. Rde1 {[%clk 0:01:33]}  Kb8 {[%clk 0:02:21]} 27. Qf2 {[%clk 0:01:27]}  c5 {[%clk 0:02:16]} 28. Qh4 {[%clk 0:01:19]}  Rc8 {[%clk 0:02:10]} 29. Rxf5 {[%clk 0:00:47]}  exf5 {[%clk 0:02:09]} 30. c4 {[%clk 0:00:37]}  Nb6 {[%clk 0:01:44]} 31. Kc2 {[%clk 0:00:35]}  Rd4 {[%clk 0:01:42]} 32. Qf2 {[%clk 0:00:34]}  Qd7 {[%clk 0:01:41]} 33. Qf3 {[%clk 0:00:33]}  a6 {[%clk 0:01:17]} 34. e6 {[%clk 0:00:32]}  fxe6 {[%clk 0:01:12]} 35. Rxe6 {[%clk 0:00:33]}  Rxd3 {[%clk 0:01:10]} 36. Qf4+ {[%clk 0:00:17]}  Ka7 {[%clk 0:01:07]} 37. Re7 {[%clk 0:00:18]}  Qa4+ {[%clk 0:00:45]} 38. Kxd3 {[%clk 0:00:18]}  Rd8+ {[%clk 0:00:46]} 39. Ke3 {[%clk 0:00:19]}  Nxc4+ {[%clk 0:00:33]} 40. Kf2 {[%clk 0:00:19]}  Qc2+ {[%clk 0:00:27]} 41. Kg3 {[%clk 0:00:19]}  Rd3+ {[%clk 0:00:18]} 42. Kh2 {[%clk 0:00:20]}  Rb3 {[%clk 0:00:19]} 43. Re8 {[%clk 0:00:17]}  Kb6 {[%clk 0:00:13]} 44. Bd8+ {[%clk 0:00:16]}  Kb5 {[%clk 0:00:12]} 45. Re7 {[%clk 0:00:15]}  b6 {[%clk 0:00:11]} 46. Re6 {[%clk 0:00:12]}  Rxb2 {[%clk 0:00:09]} 47. Qf3 {[%clk 0:00:12]}  Ka4 {[%clk 0:00:06]} 48. Qc6+ {[%clk 0:00:12]}  Kxa3 {[%clk 0:00:05]} 49. Bg5 {[%clk 0:00:10]}  Qf2 {[%clk 0:00:04]} 50. Qd5 {[%clk 0:00:09]}  f4 {[%clk 0:00:03]} 51. Re1 {[%clk 0:00:08]}  Ne3 {[%clk 0:00:02]} 52. Ra1+ {[%clk 0:00:07]}  Kb4 {[%clk 0:00:02]} 53. Qe4+ {[%clk 0:00:08]}  Kb5 {[%clk 0:00:02]} 54. Qc6+ {[%clk 0:00:08]}  Kc4 {[%clk 0:00:02]} 55. Qe4+ {[%clk 0:00:08]}  Kb5 {[%clk 0:00:02]} 56. Qa4# {[%clk 0:00:08]} 1-0


[Site "https://www.chess.com"]

[Event "Titled Tuesday Blitz January 17 Early 2023"]
[White "Gorodetzky, David"]
[Black "Andreikin, Dmitry"]
[WhiteFideId "2813416"]
[BlackFideId "4158814"]
[WhiteElo "2485"]
[BlackElo "2729"]
[Result "0-1"]
[Round "05"]
[TimeControl "180+2"]
[Date "2023.01.17"]
[WhiteClock "0:00:02"]
[BlackClock "0:00:10"]

1. e4 {[%clk 0:03:00]}  e6 {[%clk 0:02:59]} 2. d4 {[%clk 0:02:59]}  d5 {[%clk 0:02:59]} 3. e5 {[%clk 0:02:57]}  c5 {[%clk 0:02:59]} 4. c3 {[%clk 0:02:57]}  Qb6 {[%clk 0:02:58]} 5. Nf3 {[%clk 0:02:56]}  Nc6 {[%clk 0:02:56]} 6. Bd3 {[%clk 0:02:54]}  cxd4 {[%clk 0:02:52]} 7. O-O {[%clk 0:02:54]}  Bd7 {[%clk 0:02:50]} 8. Re1 {[%clk 0:02:53]}  Rc8 {[%clk 0:02:43]} 9. a3 {[%clk 0:02:36]}  Nge7 {[%clk 0:02:39]} 10. h4 {[%clk 0:02:35]}  g6 {[%clk 0:02:34]} 11. b4 {[%clk 0:02:17]}  Bg7 {[%clk 0:02:20]} 12. b5 {[%clk 0:02:15]}  Na5 {[%clk 0:02:04]} 13. Nxd4 {[%clk 0:02:14]}  Nc4 {[%clk 0:01:59]} 14. Bxc4 {[%clk 0:02:08]}  dxc4 {[%clk 0:01:55]} 15. a4 {[%clk 0:02:01]}  Nd5 {[%clk 0:01:53]} 16. Ba3 {[%clk 0:02:01]}  Qd8 {[%clk 0:01:39]} 17. Qf3 {[%clk 0:01:48]}  Qxh4 {[%clk 0:01:34]} 18. Nd2 {[%clk 0:01:48]}  Qf4 {[%clk 0:01:17]} 19. Qxf4 {[%clk 0:01:19]}  Nxf4 {[%clk 0:01:18]} 20. Ne4 {[%clk 0:01:19]}  Bxe5 {[%clk 0:01:18]} 21. Bd6 {[%clk 0:01:19]}  Bxd6 {[%clk 0:01:18]} 22. Nxd6+ {[%clk 0:01:19]}  Ke7 {[%clk 0:01:18]} 23. Nxc8+ {[%clk 0:01:18]}  Rxc8 {[%clk 0:01:19]} 24. Rad1 {[%clk 0:01:00]}  f6 {[%clk 0:01:19]} 25. Rd2 {[%clk 0:00:51]}  e5 {[%clk 0:01:17]} 26. Nc2 {[%clk 0:00:51]}  Nd3 {[%clk 0:01:11]} 27. Rb1 {[%clk 0:00:48]}  Bf5 {[%clk 0:01:10]} 28. Ne3 {[%clk 0:00:46]}  Be6 {[%clk 0:01:10]} 29. Nd1 {[%clk 0:00:37]}  h5 {[%clk 0:01:05]} 30. f3 {[%clk 0:00:37]}  h4 {[%clk 0:01:04]} 31. Nf2 {[%clk 0:00:37]}  Bf5 {[%clk 0:01:03]} 32. Nxd3 {[%clk 0:00:37]}  cxd3 {[%clk 0:01:01]} 33. Rb3 {[%clk 0:00:35]}  g5 {[%clk 0:00:59]} 34. Kf2 {[%clk 0:00:35]}  Rc4 {[%clk 0:00:59]} 35. a5 {[%clk 0:00:35]}  Kd6 {[%clk 0:00:58]} 36. Ke3 {[%clk 0:00:31]}  Kc5 {[%clk 0:00:58]} 37. Rdb2 {[%clk 0:00:20]}  g4 {[%clk 0:00:50]} 38. fxg4 {[%clk 0:00:19]}  Rxg4 {[%clk 0:00:49]} 39. Rf2 {[%clk 0:00:20]}  Rg3+ {[%clk 0:00:40]} 40. Rf3 {[%clk 0:00:17]}  Kc4 {[%clk 0:00:37]} 41. Rxg3 {[%clk 0:00:12]}  hxg3 {[%clk 0:00:36]} 42. Ra3 {[%clk 0:00:09]}  e4 {[%clk 0:00:22]} 43. b6 {[%clk 0:00:09]}  a6 {[%clk 0:00:22]} 44. Ra4+ {[%clk 0:00:09]}  Kxc3 {[%clk 0:00:22]} 45. Rd4 {[%clk 0:00:09]}  Bh3 {[%clk 0:00:11]} 46. Kxe4 {[%clk 0:00:04]}  Bxg2+ {[%clk 0:00:10]} 47. Ke3 {[%clk 0:00:04]}  Bf1 {[%clk 0:00:10]} 48. Rd7 {[%clk 0:00:02]}  g2 {[%clk 0:00:10]} 49. Rc7+ {[%clk 0:00:03]}  Kb4 {[%clk 0:00:11]} 50. Rg7 {[%clk 0:00:04]}  Kxa5 {[%clk 0:00:11]} 51. Rg6 {[%clk 0:00:03]}  Kxb6 {[%clk 0:00:10]} 52. Rxf6+ {[%clk 0:00:03]}  Ka5 {[%clk 0:00:11]} 53. Kf2 {[%clk 0:00:03]}  b5 {[%clk 0:00:09]} 54. Rg6 {[%clk 0:00:03]}  b4 {[%clk 0:00:09]} 55. Ke3 {[%clk 0:00:04]}  Kb5 {[%clk 0:00:10]} 56. Rg5+ {[%clk 0:00:03]}  Ka4 {[%clk 0:00:10]} 57. Kd2 {[%clk 0:00:04]}  a5 {[%clk 0:00:10]} 58. Kc1 {[%clk 0:00:03]}  Kb3 {[%clk 0:00:10]} 59. Rg3 {[%clk 0:00:02]}  a4 {[%clk 0:00:10]} 0-1


[Site "https://www.chess.com"]

[Event "Titled Tuesday Blitz January 17 Early 2023"]
[White "Vokhidov, Shamsiddin"]
[Black "Urazayev, Arystanbek"]
[WhiteFideId "14204223"]
[BlackFideId "13709810"]
[WhiteElo "2586"]
[BlackElo "2460"]
[Result "1-0"]
[Round "05"]
[TimeControl "180+2"]
[Date "2023.01.17"]
[WhiteClock "0:01:20"]
[BlackClock "0:00:38"]

1. e4 {[%clk 0:03:00]}  c5 {[%clk 0:02:59]} 2. Nf3 {[%clk 0:03:01]}  e6 {[%clk 0:02:58]} 3. d4 {[%clk 0:03:00]}  cxd4 {[%clk 0:02:59]} 4. Nxd4 {[%clk 0:03:01]}  Nf6 {[%clk 0:02:57]} 5. Nc3 {[%clk 0:03:01]}  Nc6 {[%clk 0:02:57]} 6. Nxc6 {[%clk 0:03:01]}  bxc6 {[%clk 0:02:57]} 7. e5 {[%clk 0:03:02]}  Nd5 {[%clk 0:02:57]} 8. Ne4 {[%clk 0:03:02]}  Bb7 {[%clk 0:02:56]} 9. Be2 {[%clk 0:03:02]}  c5 {[%clk 0:02:55]} 10. O-O {[%clk 0:03:01]}  Qc7 {[%clk 0:02:54]} 11. c4 {[%clk 0:03:00]}  Qxe5 {[%clk 0:02:33]} 12. cxd5 {[%clk 0:02:15]}  Qxe4 {[%clk 0:02:32]} 13. Bf3 {[%clk 0:02:14]}  Qb4 {[%clk 0:02:30]} 14. Re1 {[%clk 0:02:09]}  Be7 {[%clk 0:02:25]} 15. Bd2 {[%clk 0:01:45]}  Qb6 {[%clk 0:02:25]} 16. dxe6 {[%clk 0:01:44]}  fxe6 {[%clk 0:02:05]} 17. Bc3 {[%clk 0:01:44]}  O-O {[%clk 0:01:54]} 18. Qxd7 {[%clk 0:01:42]}  Bxf3 {[%clk 0:01:46]} 19. Rxe6 {[%clk 0:01:42]}  Bc6 {[%clk 0:00:36]} 20. Rxe7 {[%clk 0:01:20]}  Bxd7 {[%clk 0:00:37]} 21. Rxg7+ {[%clk 0:01:20]}  Kh8 {[%clk 0:00:37]} 22. Rg6+ {[%clk 0:01:21]}  Rf6 {[%clk 0:00:38]} 23. Bxf6+ {[%clk 0:01:20]} 1-0


[Site "https://www.chess.com"]

[Event "Titled Tuesday Blitz January 17 Early 2023"]
[White "Murzin, Volodar"]
[Black "Jobava, Baadur"]
[WhiteFideId "44155573"]
[BlackFideId "13601520"]
[WhiteElo "2604"]
[BlackElo "2578"]
[Result "0-1"]
[Round "05"]
[TimeControl "180+2"]
[Date "2023.01.17"]
[WhiteClock "0:00:04"]
[BlackClock "0:01:25"]

1. e4 {[%clk 0:03:00]}  d6 {[%clk 0:02:57]} 2. d4 {[%clk 0:02:56]}  Nf6 {[%clk 0:02:58]} 3. Nc3 {[%clk 0:02:56]}  e5 {[%clk 0:02:58]} 4. dxe5 {[%clk 0:02:52]}  dxe5 {[%clk 0:02:59]} 5. Qxd8+ {[%clk 0:02:52]}  Kxd8 {[%clk 0:03:00]} 6. Bg5 {[%clk 0:02:51]}  Bd6 {[%clk 0:02:58]} 7. O-O-O {[%clk 0:02:48]}  Nd7 {[%clk 0:02:59]} 8. f4 {[%clk 0:02:33]}  exf4 {[%clk 0:02:49]} 9. Nf3 {[%clk 0:02:26]}  h6 {[%clk 0:02:37]} 10. Bxf6+ {[%clk 0:02:23]}  gxf6 {[%clk 0:02:38]} 11. Bc4 {[%clk 0:02:06]}  Ne5 {[%clk 0:02:35]} 12. Nxe5 {[%clk 0:01:47]}  fxe5 {[%clk 0:02:35]} 13. Bxf7 {[%clk 0:01:48]}  Ke7 {[%clk 0:02:35]} 14. Bc4 {[%clk 0:01:29]}  c6 {[%clk 0:02:35]} 15. Rd2 {[%clk 0:01:28]}  Bc5 {[%clk 0:02:29]} 16. Nd1 {[%clk 0:01:18]}  Rh7 {[%clk 0:02:16]} 17. c3 {[%clk 0:01:07]}  Rg7 {[%clk 0:02:13]} 18. Kc2 {[%clk 0:00:58]}  a5 {[%clk 0:02:08]} 19. g3 {[%clk 0:00:48]}  b5 {[%clk 0:02:04]} 20. Be2 {[%clk 0:00:23]}  Be6 {[%clk 0:02:04]} 21. gxf4 {[%clk 0:00:14]}  exf4 {[%clk 0:02:05]} 22. b3 {[%clk 0:00:14]}  Rf8 {[%clk 0:01:58]} 23. Bf3 {[%clk 0:00:06]}  a4 {[%clk 0:01:37]} 24. b4 {[%clk 0:00:02]}  Be3 {[%clk 0:01:35]} 25. Re2 {[%clk 0:00:03]}  Bc4 {[%clk 0:01:29]} 26. Nxe3 {[%clk 0:00:03]}  Bxe2 {[%clk 0:01:29]} 27. Nf5+ {[%clk 0:00:04]}  Rxf5 {[%clk 0:01:29]} 28. Bxe2 {[%clk 0:00:04]}  Rfg5 {[%clk 0:01:25]} 0-1


[Site "https://www.chess.com"]